Workbook

Sheet 計画値１
C1: 17/01/15予算 | D1: 17/01/15予算 | E1: 17/01/15予算 | F1: 17/01/15予算 | G1: 17/01/15予算 | H1: 17/01/15予算 | I1: 17/01/15予算 | J1: 17/01/15予算 | K1: 17/01/15予算 | L1: 17/01/15予算 | M1: 17/01/15予算 | N1: 17/01/15予算
C2: 2017-04-01 | D2: 2017-05-01 | E2: 2017-06-01 | F2: 2017-07-01 | G2: 2017-08-01 | H2: 2017-09-01 | I2: 2017-10-01 | J2: 2017-11-01 | K2: 2017-12-01 | L2: 2018-01-01 | M2: 2018-02-01 | N2: 2018-03-01 | O2: 年度計
A3: 人数 | B3: 原価要員数 | C3: 30 | D3: 30 | E3: 30 | F3: 30 | G3: 30 | H3: 30 | I3: 30 | J3: 30 | K3: 30 | L3: 30 | M3: 30 | N3: 30
B4: 販管要員数 | C4: 15 | D4: 15 | E4: 15 | F4: 15 | G4: 15 | H4: 15 | I4: 15 | J4: 15 | K4: 15 | L4: 15 | M4: 15 | N4: 15
AJ5: 0
A6: ｺｰﾄﾞ | B6: 科目名 | C6: 4月 | D6: 5月 | E6: 6月 | F6: 7月 | G6: 8月 | H6: 9月 | I6: 10月 | J6: 11月 | K6: 12月 | L6: 1月 | M6: 2月 | N6: 3月 | O6: 年度計
A7: 4111 | B7: 売上高 | C7: 50000000 | D7: 50000000 | E7: 45000000 | F7: 50000000 | G7: 50000000 | H7: 50000000 | I7: 50000000 | J7: 50000000 | K7: 40000000 | L7: 50000000 | M7: 50000000 | N7: 60000000 | O7: =SUM(C7:N7) -> 595000000
A8: 5421 | B8: 給与(原) | C8: 18000000 | D8: 18000000 | E8: 18000000 | F8: 18000000 | G8: 18000000 | H8: 18000000 | I8: 18000000 | J8: 18000000 | K8: 18000000 | L8: 18000000 | M8: 18000000 | N8: 23000000 | O8: 221000000
A9: 5423 | B9: 賞与(原) | O9: 0
A10: 5425 | B10: 法定福利費(原) | C10: 2520000 | D10: 2520000 | E10: 2520000 | F10: 2520000 | G10: 2520000 | H10: 2520000 | I10: 2520000 | J10: 2520000 | K10: 2520000 | L10: 2520000 | M10: 2520000 | N10: 3220000 | O10: 30940000
A11: 5429 | B11: 外注委託費(原) | C11: 1500000 | D11: 1500000 | E11: 1500000 | F11: 1500000 | G11: 1500000 | H11: 1500000 | I11: 1500000 | J11: 1500000 | K11: 0 | L11: 0 | M11: 0 | N11: 0 | O11: 12000000
A12: 5442 | B12: 賃借料(原) | O12: 0
A13: 5452 | B13: 保険料(原) | C13: 20000 | D13: 20000 | E13: 20000 | F13: 20000 | G13: 20000 | H13: 20000 | I13: 20000 | J13: 20000 | K13: 20000 | L13: 20000 | M13: 20000 | N13: 20000 | O13: 240000
A14: 5455 | B14: 旅費交通費(原) | C14: 6020000 | D14: 6220000 | E14: 11220000 | F14: 7050000 | G14: 6650000 | H14: 6650000 | I14: 7500000 | J14: 6950000 | K14: 6350000 | L14: 6920000 | M14: 6320000 | N14: 6720000 | O14: 84570000
A15: 5456 | B15: 通信費(原) | C15: 300000 | D15: 300000 | E15: 300000 | F15: 300000 | G15: 300000 | H15: 300000 | I15: 300000 | J15: 300000 | K15: 300000 | L15: 300000 | M15: 300000 | N15: 300000 | O15: 3600000
A16: 5457 | B16: 接待交際費(原) | O16: 0
A17: 5458 | B17: 消耗品費(原) | C17: 250000 | D17: 250000 | E17: 250000 | F17: 250000 | G17: 250000 | H17: 250000 | I17: 250000 | J17: 250000 | K17: 250000 | L17: 250000 | M17: 250000 | N17: 550000 | O17: 3300000
A18: 5459 | B18: 運送費(原) | C18: 40000 | D18: 40000 | E18: 40000 | F18: 40000 | G18: 40000 | H18: 40000 | I18: 40000 | J18: 40000 | K18: 40000 | L18: 40000 | M18: 40000 | N18: 40000 | O18: 480000
A19: 5460 | B19: 会議費(原) | C19: 85000 | D19: 85000 | E19: 85000 | F19: 85000 | G19: 85000 | H19: 85000 | I19: 85000 | J19: 85000 | K19: 85000 | L19: 85000 | M19: 85000 | N19: 85000 | O19: 1020000
A20: 5461 | B20: 書籍代(原) | C20: 50000 | D20: 50000 | E20: 50000 | F20: 50000 | G20: 50000 | H20: 50000 | I20: 50000 | J20: 50000 | K20: 50000 | L20: 50000 | M20: 50000 | N20: 50000 | O20: 600000
A21: 5479 | B21: 雑費(原) | O21: 0
A22: 5600 | B22: その他（原） | O22: 0
A23: 5700 | B23: 売上原価 | C23: =SUM(C8:C22) -> 28785000 | D23: =SUM(D8:D22) -> 28985000 | E23: 33985000 | F23: 29815000 | G23: 29415000 | H23: 29415000 | I23: 30265000 | J23: 29715000 | K23: 27615000 | L23: 28185000 | M23: 27585000 | N23: 33985000 | O23: 357750000
A24: 6000 | B24: 売上総利益 | C24: =C7-C23 -> 21215000 | D24: =D7-D23 -> 21015000 | E24: 11015000 | F24: 20185000 | G24: 20585000 | H24: 20585000 | I24: 19735000 | J24: 20285000 | K24: 12385000 | L24: 21815000 | M24: 22415000 | N24: 26015000 | O24: 237250000
A25: 6111 | B25: 役員報酬 | C25: 1000000 | D25: 1000000 | E25: 1000000 | F25: 1000000 | G25: 1000000 | H25: 1000000 | I25: 1000000 | J25: 1000000 | K25: 1000000 | L25: 1000000 | M25: 1000000 | N25: 1000000 | O25: 12000000
A26: 6112 | B26: 給与手当(役員報酬除く） | C26: 9000000 | D26: 9000000 | E26: 9000000 | F26: 9000000 | G26: 9000000 | H26: 9000000 | I26: 9000000 | J26: 9000000 | K26: 9000000 | L26: 9000000 | M26: 9000000 | N26: 9000000 | O26: 108000000
A27: 6114 | B27: 賞与 | O27: 0
A28: 6116 | B28: 法定福利費 | C28: 1170000 | D28: 1170000 | E28: 1170000 | F28: 1170000 | G28: 1170000 | H28: 1170000 | I28: 1170000 | J28: 1170000 | K28: 1170000 | L28: 1170000 | M28: 1170000 | N28: 1170000 | O28: 14040000
A29: 6117 | B29: 福利厚生費 | C29: 226000 | D29: 226000 | E29: 226000 | F29: 226000 | G29: 226000 | H29: 268000 | I29: 226000 | J29: 226000 | K29: 426000 | L29: 268000 | M29: 226000 | N29: 226000 | O29: 2996000
A30: 6122 | B30: 顧問報酬 | C30: 300000 | D30: 300000 | E30: 300000 | F30: 300000 | G30: 300000 | H30: 300000 | I30: 300000 | J30: 300000 | K30: 300000 | L30: 300000 | M30: 300000 | N30: 300000 | O30: 3600000
A31: 6211 | B31: 派遣社員 | C31: 0 | D31: 0 | E31: 0 | F31: 0 | G31: 0 | H31: 0 | I31: 0 | J31: 0 | K31: 0 | L31: 0 | M31: 0 | N31: 0 | O31: 0
A32: 6212 | B32: 消耗品費 | C32: 377000 | D32: 252000 | E32: 252000 | F32: 252000 | G32: 252000 | H32: 252000 | I32: 377000 | J32: 252000 | K32: 252000 | L32: 252000 | M32: 252000 | N32: 252000 | O32: 3274000
A33: 6213 | B33: 賃借料 | C33: 1029600 | D33: 1029600 | E33: 1029600 | F33: 1029600 | G33: 1029600 | H33: 1029600 | I33: 1029600 | J33: 1029600 | K33: 1029600 | L33: 1029600 | M33: 1029600 | N33: 1029600 | O33: 12355200
A34: 6215 | B34: 保険料 | C34: 0 | D34: 0 | E34: 0 | F34: 1400000 | G34: 0 | H34: 0 | I34: 0 | J34: 0 | K34: 0 | L34: 40000 | M34: 0 | N34: 0 | O34: 1440000
A35: 6216 | B35: 修繕維持費 | C35: 482000 | D35: 532000 | E35: 842000 | F35: 482000 | G35: 482000 | H35: 882000 | I35: 482000 | J35: 482000 | K35: 782000 | L35: 482000 | M35: 482000 | N35: 982000 | O35: 7394000
A36: 6217 | B36: 租税公課 | C36: 0 | D36: 0 | E36: 600000 | F36: 15000 | G36: 0 | H36: 50000 | I36: 0 | J36: 0 | K36: 0 | L36: 0 | M36: 0 | N36: 50000 | O36: 715000
A37: 6218 | B37: 減価償却費 | C37: 290000 | D37: 290000 | E37: 290000 | F37: 290000 | G37: 290000 | H37: 290000 | I37: 290000 | J37: 290000 | K37: 290000 | L37: 290000 | M37: 290000 | N37: 290000 | O37: 3480000
A38: 6219 | B38: 貸倒引当金繰入 | C38: 0 | D38: 0 | E38: 0 | F38: 0 | G38: 0 | H38: 0 | I38: 0 | J38: 0 | K38: 0 | L38: 0 | M38: 0 | N38: 200000 | O38: 200000
A39: 6221 | B39: 旅費交通費 | C39: 735000 | D39: 735000 | E39: 465000 | F39: 465000 | G39: 465000 | H39: 465000 | I39: 450000 | J39: 450000 | K39: 450000 | L39: 450000 | M39: 450000 | N39: 450000 | O39: 6030000
A40: 6222 | B40: 通信費 | C40: 43000 | D40: 43000 | E40: 43000 | F40: 43000 | G40: 43000 | H40: 43000 | I40: 43000 | J40: 43000 | K40: 43000 | L40: 43000 | M40: 43000 | N40: 43000 | O40: 516000
A41: 6223 | B41: 会議費 | C41: 35400 | D41: 35400 | E41: 35400 | F41: 35400 | G41: 35400 | H41: 35400 | I41: 35400 | J41: 35400 | K41: 35400 | L41: 35400 | M41: 35400 | N41: 35400 | O41: 424800
A42: 6224 | B42: 水道光熱費 | C42: 45000 | D42: 45000 | E42: 45000 | F42: 45000 | G42: 45000 | H42: 45000 | I42: 45000 | J42: 45000 | K42: 45000 | L42: 45000 | M42: 45000 | N42: 45000 | O42: 540000
A43: 6225 | B43: 支払手数料 | C43: 250000 | D43: 500000 | E43: 260000 | F43: 250000 | G43: 200000 | H43: 300000 | I43: 200000 | J43: 200000 | K43: 300000 | L43: 250000 | M43: 200000 | N43: 300000 | O43: 3210000
A44: 6226 | B44: 新聞図書費 | C44: 9700 | D44: 9700 | E44: 9700 | F44: 9700 | G44: 9700 | H44: 14700 | I44: 9700 | J44: 9700 | K44: 9700 | L44: 9700 | M44: 9700 | N44: 14700 | O44: 126400
A45: 6227 | B45: 銀行手数料 | C45: 5000 | D45: 5000 | E45: 5000 | F45: 5000 | G45: 5000 | H45: 5000 | I45: 5000 | J45: 5000 | K45: 5000 | L45: 5000 | M45: 5000 | N45: 5000 | O45: 60000
A46: 6228 | B46: 販促・広告費 | C46: 135000 | D46: 0 | E46: 0 | F46: 500000 | G46: 0 | H46: 0 | I46: 135000 | J46: 0 | K46: 0 | L46: 500000 | M46: 0 | N46: 0 | O46: 1270000
A47: 6229 | B47: 接待交際費 | C47: 50000 | D47: 50000 | E47: 50000 | F47: 50000 | G47: 50000 | H47: 50000 | I47: 50000 | J47: 50000 | K47: 50000 | L47: 50000 | M47: 50000 | N47: 50000 | O47: 600000
A48: 6230 | B48: 諸会費 | G48: 60000 | H48: 20000 | I48: 60000 | N48: 60000 | O48: 200000
A49: 6231 | B49: 寄付金 | C49: 0 | D49: 0 | E49: 0 | F49: 30000 | G49: 0 | H49: 0 | I49: 0 | J49: 0 | K49: 0 | L49: 30000 | M49: 0 | N49: 0 | O49: 60000
A50: 6233 | B50: 運送費 | C50: 15000 | D50: 15000 | E50: 15000 | F50: 15000 | G50: 15000 | H50: 15000 | I50: 15000 | J50: 15000 | K50: 15000 | L50: 15000 | M50: 15000 | N50: 15000 | O50: 180000
A51: 6234 | B51: 教育･トレーニング費 | I51: 150000 | N51: 500000 | O51: 650000
A52: 6235 | B52: 紹介手数料 | C52: 0 | D52: 0 | E52: 0 | F52: 0 | G52: 0 | H52: 0 | I52: 630000 | J52: 0 | K52: 0 | L52: 0 | M52: 0 | N52: 630000 | O52: 1260000
A53: 6236 | B53: 採用費 | O53: 0
A54: 6249 | B54: 雑費 | C54: 0 | D54: 0 | E54: 0 | F54: 0 | G54: 0 | H54: 0 | I54: 0 | J54: 0 | K54: 0 | L54: 0 | M54: 0 | N54: 0 | O54: 0
A55: 7000 | B55: 営業利益 | C55: =C24-SUM(C25:C54) -> 6017300 | D55: =D24-SUM(D25:D54) -> 5777300 | E55: -4622700 | F55: 3572300 | G55: 5907300 | H55: 5350300 | I55: 4032300 | J55: 5682300 | K55: -2817700 | L55: 6550300 | M55: 7812300 | N55: 9367300 | O55: =SUM(C55:N55) -> 52628600
A56: 7111 | B56: 受取利息 | C56: 0 | D56: 0 | E56: 0 | F56: 0 | G56: 0 | H56: 0 | I56: 0 | J56: 0 | K56: 0 | L56: 0 | M56: 0 | N56: 0 | O56: 0
A57: 7119 | B57: 雑収入 | C57: 0 | D57: 0 | E57: 0 | F57: 0 | G57: 0 | H57: 0 | I57: 0 | J57: 0 | K57: 0 | L57: 0 | M57: 0 | N57: 0 | O57: 0
A58: 7211 | B58: 支払利息割引料 | C58: 0 | D58: 0 | E58: 0 | F58: 0 | G58: 0 | H58: 0 | I58: 0 | J58: 0 | K58: 0 | L58: 0 | M58: 0 | N58: 0 | O58: 0
A59: 7219 | B59: 雑損失 | C59: 0 | D59: 0 | E59: 0 | F59: 0 | G59: 0 | H59: 0 | I59: 0 | J59: 0 | K59: 0 | L59: 0 | M59: 0 | N59: 0 | O59: 0
A60: 8000 | B60: 経常利益 | C60: =C55+C56+C57-C58-C59 -> 6017300 | D60: =D55+D56+D57-D58-D59 -> 5777300 | E60: -4622700 | F60: 3572300 | G60: 5907300 | H60: 5350300 | I60: 4032300 | J60: 5682300 | K60: -2817700 | L60: 6550300 | M60: 7812300 | N60: 9367300 | O60: 52628600

Sheet 計画値２
C1: 17/02/15予算 | D1: 17/02/15予算 | E1: 17/02/15予算 | F1: 17/02/15予算 | G1: 17/02/15予算 | H1: 17/02/15予算 | I1: 17/02/15予算 | J1: 17/02/15予算 | K1: 17/02/15予算 | L1: 17/02/15予算 | M1: 17/02/15予算 | N1: 17/02/15予算
C2: 2017-04-01 | D2: 2017-05-01 | E2: 2017-06-01 | F2: 2017-07-01 | G2: 2017-08-01 | H2: 2017-09-01 | I2: 2017-10-01 | J2: 2017-11-01 | K2: 2017-12-01 | L2: 2018-01-01 | M2: 2018-02-01 | N2: 2018-03-01 | O2: 年度計
A3: 人数 | B3: 原価要員数 | C3: 30 | D3: 30 | E3: 30 | F3: 30 | G3: 30 | H3: 30 | I3: 30 | J3: 30 | K3: 30 | L3: 30 | M3: 30 | N3: 30
B4: 販管要員数 | C4: 15 | D4: 15 | E4: 15 | F4: 15 | G4: 15 | H4: 15 | I4: 15 | J4: 15 | K4: 15 | L4: 15 | M4: 15 | N4: 15
AJ5: 0
A6: ｺｰﾄﾞ | B6: 科目名 | C6: 4月 | D6: 5月 | E6: 6月 | F6: 7月 | G6: 8月 | H6: 9月 | I6: 10月 | J6: 11月 | K6: 12月 | L6: 1月 | M6: 2月 | N6: 3月 | O6: 年度計
A7: 4111 | B7: 売上高 | C7: 50000000 | D7: 50000000 | E7: 45000000 | F7: 40000000 | G7: 50000000 | H7: 50000000 | I7: 50000000 | J7: 50000000 | K7: 50000000 | L7: 50000000 | M7: 55000000 | N7: 60000000 | O7: =SUM(C7:N7) -> 600000000
A8: 5421 | B8: 給与(原) | C8: 18000000 | D8: 18000000 | E8: 18000000 | F8: 18000000 | G8: 18000000 | H8: 18000000 | I8: 18000000 | J8: 18000000 | K8: 18000000 | L8: 18000000 | M8: 18000000 | N8: 23000000 | O8: 221000000
A9: 5423 | B9: 賞与(原) | O9: 0
A10: 5425 | B10: 法定福利費(原) | C10: 2520000 | D10: 2520000 | E10: 2520000 | F10: 2520000 | G10: 2520000 | H10: 2520000 | I10: 2520000 | J10: 2520000 | K10: 2520000 | L10: 2520000 | M10: 2520000 | N10: 3220000 | O10: 30940000
A11: 5429 | B11: 外注委託費(原) | C11: 1500000 | D11: 1500000 | E11: 1500000 | F11: 1500000 | G11: 1500000 | H11: 1500000 | I11: 1500000 | J11: 1500000 | K11: 0 | L11: 0 | M11: 0 | N11: 0 | O11: 12000000
A12: 5442 | B12: 賃借料(原) | O12: 0
A13: 5452 | B13: 保険料(原) | C13: 20000 | D13: 20000 | E13: 20000 | F13: 20000 | G13: 20000 | H13: 20000 | I13: 20000 | J13: 20000 | K13: 20000 | L13: 20000 | M13: 20000 | N13: 20000 | O13: 240000
A14: 5455 | B14: 旅費交通費(原) | C14: 6020000 | D14: 6220000 | E14: 11220000 | F14: 7050000 | G14: 6650000 | H14: 6650000 | I14: 6000000 | J14: 6000000 | K14: 6000000 | L14: 6000000 | M14: 6000000 | N14: 6000000 | O14: 79810000
A15: 5456 | B15: 通信費(原) | C15: 300000 | D15: 300000 | E15: 300000 | F15: 300000 | G15: 300000 | H15: 300000 | I15: 300000 | J15: 300000 | K15: 300000 | L15: 300000 | M15: 300000 | N15: 300000 | O15: 3600000
A16: 5457 | B16: 接待交際費(原) | O16: 0
A17: 5458 | B17: 消耗品費(原) | C17: 250000 | D17: 250000 | E17: 250000 | F17: 250000 | G17: 250000 | H17: 250000 | I17: 250000 | J17: 250000 | K17: 250000 | L17: 250000 | M17: 250000 | N17: 550000 | O17: 3300000
A18: 5459 | B18: 運送費(原) | C18: 40000 | D18: 40000 | E18: 40000 | F18: 40000 | G18: 40000 | H18: 40000 | I18: 40000 | J18: 40000 | K18: 40000 | L18: 40000 | M18: 40000 | N18: 40000 | O18: 480000
A19: 5460 | B19: 会議費(原) | C19: 85000 | D19: 85000 | E19: 85000 | F19: 85000 | G19: 85000 | H19: 85000 | I19: 85000 | J19: 85000 | K19: 85000 | L19: 85000 | M19: 85000 | N19: 85000 | O19: 1020000
A20: 5461 | B20: 書籍代(原) | C20: 50000 | D20: 50000 | E20: 50000 | F20: 50000 | G20: 50000 | H20: 50000 | I20: 50000 | J20: 50000 | K20: 50000 | L20: 50000 | M20: 50000 | N20: 50000 | O20: 600000
A21: 5479 | B21: 雑費(原) | O21: 0
A22: 5600 | B22: その他（原） | O22: 0
A23: 5700 | B23: 売上原価 | C23: =SUM(C8:C22) -> 28785000 | D23: =SUM(D8:D22) -> 28985000 | E23: 33985000 | F23: 29815000 | G23: 29415000 | H23: 29415000 | I23: 28765000 | J23: 28765000 | K23: 27265000 | L23: 27265000 | M23: 27265000 | N23: 33265000 | O23: 352990000
A24: 6000 | B24: 売上総利益 | C24: =C7-C23 -> 21215000 | D24: =D7-D23 -> 21015000 | E24: 11015000 | F24: 10185000 | G24: 20585000 | H24: 20585000 | I24: 21235000 | J24: 21235000 | K24: 22735000 | L24: 22735000 | M24: 27735000 | N24: 26735000 | O24: 247010000
A25: 6111 | B25: 役員報酬 | C25: 1000000 | D25: 1000000 | E25: 1000000 | F25: 1000000 | G25: 1000000 | H25: 1000000 | I25: 1000000 | J25: 1000000 | K25: 1000000 | L25: 1000000 | M25: 1000000 | N25: 1000000 | O25: 12000000
A26: 6112 | B26: 給与手当(役員報酬除く） | C26: 9000000 | D26: 9000000 | E26: 9000000 | F26: 9000000 | G26: 9000000 | H26: 9000000 | I26: 9000000 | J26: 9000000 | K26: 9000000 | L26: 9000000 | M26: 9000000 | N26: 9000000 | O26: 108000000
A27: 6114 | B27: 賞与 | O27: 0
A28: 6116 | B28: 法定福利費 | C28: 1170000 | D28: 1170000 | E28: 1170000 | F28: 1170000 | G28: 1170000 | H28: 1170000 | I28: 1170000 | J28: 1170000 | K28: 1170000 | L28: 1170000 | M28: 1170000 | N28: 1170000 | O28: 14040000
A29: 6117 | B29: 福利厚生費 | C29: 226000 | D29: 226000 | E29: 226000 | F29: 226000 | G29: 226000 | H29: 268000 | I29: 226000 | J29: 226000 | K29: 426000 | L29: 268000 | M29: 226000 | N29: 226000 | O29: 2996000
A30: 6122 | B30: 顧問報酬 | C30: 300000 | D30: 300000 | E30: 300000 | F30: 300000 | G30: 300000 | H30: 300000 | I30: 300000 | J30: 300000 | K30: 300000 | L30: 300000 | M30: 300000 | N30: 300000 | O30: 3600000
A31: 6211 | B31: 派遣社員 | C31: 0 | D31: 0 | E31: 0 | F31: 0 | G31: 0 | H31: 0 | I31: 0 | J31: 0 | K31: 0 | L31: 0 | M31: 0 | N31: 0 | O31: 0
A32: 6212 | B32: 消耗品費 | C32: 377000 | D32: 252000 | E32: 252000 | F32: 252000 | G32: 252000 | H32: 252000 | I32: 377000 | J32: 252000 | K32: 252000 | L32: 252000 | M32: 252000 | N32: 252000 | O32: 3274000
A33: 6213 | B33: 賃借料 | C33: 1029600 | D33: 1029600 | E33: 1029600 | F33: 1029600 | G33: 1029600 | H33: 1029600 | I33: 1029600 | J33: 1029600 | K33: 1029600 | L33: 1029600 | M33: 1029600 | N33: 1029600 | O33: 12355200
A34: 6215 | B34: 保険料 | C34: 0 | D34: 0 | E34: 0 | F34: 1400000 | G34: 0 | H34: 0 | I34: 0 | J34: 0 | K34: 0 | L34: 40000 | M34: 0 | N34: 0 | O34: 1440000
A35: 6216 | B35: 修繕維持費 | C35: 482000 | D35: 532000 | E35: 842000 | F35: 482000 | G35: 482000 | H35: 882000 | I35: 482000 | J35: 482000 | K35: 782000 | L35: 482000 | M35: 482000 | N35: 982000 | O35: 7394000
A36: 6217 | B36: 租税公課 | C36: 0 | D36: 0 | E36: 600000 | F36: 15000 | G36: 0 | H36: 50000 | I36: 0 | J36: 0 | K36: 0 | L36: 0 | M36: 0 | N36: 50000 | O36: 715000
A37: 6218 | B37: 減価償却費 | C37: 290000 | D37: 290000 | E37: 290000 | F37: 290000 | G37: 290000 | H37: 290000 | I37: 290000 | J37: 290000 | K37: 290000 | L37: 290000 | M37: 290000 | N37: 290000 | O37: 3480000
A38: 6219 | B38: 貸倒引当金繰入 | C38: 0 | D38: 0 | E38: 0 | F38: 0 | G38: 0 | H38: 0 | I38: 0 | J38: 0 | K38: 0 | L38: 0 | M38: 0 | N38: 200000 | O38: 200000
A39: 6221 | B39: 旅費交通費 | C39: 650000 | D39: 650000 | E39: 465000 | F39: 465000 | G39: 465000 | H39: 465000 | I39: 400000 | J39: 400000 | K39: 400000 | L39: 400000 | M39: 400000 | N39: 400000 | O39: 5560000
A40: 6222 | B40: 通信費 | C40: 43000 | D40: 43000 | E40: 43000 | F40: 43000 | G40: 43000 | H40: 43000 | I40: 43000 | J40: 43000 | K40: 43000 | L40: 43000 | M40: 43000 | N40: 43000 | O40: 516000
A41: 6223 | B41: 会議費 | C41: 35400 | D41: 35400 | E41: 35400 | F41: 35400 | G41: 35400 | H41: 35400 | I41: 35400 | J41: 35400 | K41: 35400 | L41: 35400 | M41: 35400 | N41: 35400 | O41: 424800
A42: 6224 | B42: 水道光熱費 | C42: 45000 | D42: 45000 | E42: 45000 | F42: 45000 | G42: 45000 | H42: 45000 | I42: 45000 | J42: 45000 | K42: 45000 | L42: 45000 | M42: 45000 | N42: 45000 | O42: 540000
A43: 6225 | B43: 支払手数料 | C43: 250000 | D43: 500000 | E43: 260000 | F43: 250000 | G43: 200000 | H43: 300000 | I43: 200000 | J43: 200000 | K43: 300000 | L43: 250000 | M43: 200000 | N43: 300000 | O43: 3210000
A44: 6226 | B44: 新聞図書費 | C44: 9700 | D44: 9700 | E44: 9700 | F44: 9700 | G44: 9700 | H44: 14700 | I44: 9700 | J44: 9700 | K44: 9700 | L44: 9700 | M44: 9700 | N44: 14700 | O44: 126400
A45: 6227 | B45: 銀行手数料 | C45: 5000 | D45: 5000 | E45: 5000 | F45: 5000 | G45: 5000 | H45: 5000 | I45: 5000 | J45: 5000 | K45: 5000 | L45: 5000 | M45: 5000 | N45: 5000 | O45: 60000
A46: 6228 | B46: 販促・広告費 | C46: 135000 | D46: 0 | E46: 0 | F46: 500000 | G46: 0 | H46: 0 | I46: 135000 | J46: 0 | K46: 0 | L46: 500000 | M46: 0 | N46: 0 | O46: 1270000
A47: 6229 | B47: 接待交際費 | C47: 50000 | D47: 50000 | E47: 50000 | F47: 50000 | G47: 50000 | H47: 50000 | I47: 50000 | J47: 50000 | K47: 50000 | L47: 50000 | M47: 50000 | N47: 50000 | O47: 600000
A48: 6230 | B48: 諸会費 | G48: 60000 | H48: 20000 | I48: 60000 | N48: 60000 | O48: 200000
A49: 6231 | B49: 寄付金 | C49: 0 | D49: 0 | E49: 0 | F49: 30000 | G49: 0 | H49: 0 | I49: 0 | J49: 0 | K49: 0 | L49: 30000 | M49: 0 | N49: 0 | O49: 60000
A50: 6233 | B50: 運送費 | C50: 15000 | D50: 15000 | E50: 15000 | F50: 15000 | G50: 15000 | H50: 15000 | I50: 15000 | J50: 15000 | K50: 15000 | L50: 15000 | M50: 15000 | N50: 15000 | O50: 180000
A51: 6234 | B51: 教育･トレーニング費 | I51: 150000 | N51: 500000 | O51: 650000
A52: 6235 | B52: 紹介手数料 | C52: 0 | D52: 0 | E52: 0 | F52: 0 | G52: 0 | H52: 0 | I52: 630000 | J52: 0 | K52: 0 | L52: 0 | M52: 0 | N52: 630000 | O52: 1260000
A53: 6236 | B53: 採用費 | O53: 0
A54: 6249 | B54: 雑費 | C54: 0 | D54: 0 | E54: 0 | F54: 0 | G54: 0 | H54: 0 | I54: 0 | J54: 0 | K54: 0 | L54: 0 | M54: 0 | N54: 0 | O54: 0
A55: 7000 | B55: 営業利益 | C55: =C24-SUM(C25:C54) -> 6102300 | D55: =D24-SUM(D25:D54) -> 5862300 | E55: -4622700 | F55: -6427700 | G55: 5907300 | H55: 5350300 | I55: 5582300 | J55: 6682300 | K55: 7582300 | L55: 7520300 | M55: 13182300 | N55: 10137300 | O55: =SUM(C55:N55) -> 62858600
A56: 7111 | B56: 受取利息 | C56: 0 | D56: 0 | E56: 0 | F56: 0 | G56: 0 | H56: 0 | I56: 0 | J56: 0 | K56: 0 | L56: 0 | M56: 0 | N56: 0 | O56: 0
A57: 7119 | B57: 雑収入 | C57: 0 | D57: 0 | E57: 0 | F57: 0 | G57: 0 | H57: 0 | I57: 0 | J57: 0 | K57: 0 | L57: 0 | M57: 0 | N57: 0 | O57: 0
A58: 7211 | B58: 支払利息割引料 | C58: 0 | D58: 0 | E58: 0 | F58: 0 | G58: 0 | H58: 0 | I58: 0 | J58: 0 | K58: 0 | L58: 0 | M58: 0 | N58: 0 | O58: 0
A59: 7219 | B59: 雑損失 | C59: 0 | D59: 0 | E59: 0 | F59: 0 | G59: 0 | H59: 0 | I59: 0 | J59: 0 | K59: 0 | L59: 0 | M59: 0 | N59: 0 | O59: 0
A60: 8000 | B60: 経常利益 | C60: =C55+C56+C57-C58-C59 -> 6102300 | D60: =D55+D56+D57-D58-D59 -> 5862300 | E60: -4622700 | F60: -6427700 | G60: 5907300 | H60: 5350300 | I60: 5582300 | J60: 6682300 | K60: 7582300 | L60: 7520300 | M60: 13182300 | N60: 10137300 | O60: 62858600

Sheet ４月実績値
C1: 実績
C2: 2017-04-01 | O2: 年度計
A3: 人数 | B3: 原価要員数 | C3: 23
B4: 販管要員数 | C4: 11
AK5: 0
A6: ｺｰﾄﾞ | B6: 科目名 | C6: 4月 | O6: 年度計
A7: 4111 | B7: 売上高 | C7: 30500000
A8: 5421 | B8: 給与(原) | C8: 17000000
A9: 5423 | B9: 賞与(原)
A10: 5425 | B10: 法定福利費(原) | C10: 2500000
A11: 5429 | B11: 外注委託費(原) | C11: 1500000
A12: 5442 | B12: 賃借料(原)
A13: 5452 | B13: 保険料(原) | C13: 5000
A14: 5455 | B14: 旅費交通費(原) | C14: 4750000
A15: 5456 | B15: 通信費(原) | C15: 250000
A16: 5457 | B16: 接待交際費(原)
A17: 5458 | B17: 消耗品費(原) | C17: 200000
A18: 5459 | B18: 運送費(原) | C18: 35000
A19: 5460 | B19: 会議費(原) | C19: 80000
A20: 5461 | B20: 書籍代(原) | C20: 45000
A21: 5479 | B21: 雑費(原)
A22: 5600 | B22: その他（原）
A23: 5700 | B23: 売上原価 | C23: =SUM(C8:C22) -> 26365000
A24: 6000 | B24: 売上総利益 | C24: =C7-C23 -> 4135000
A25: 6111 | B25: 役員報酬 | C25: 500000
A26: 6112 | B26: 給与手当(役員報酬除く） | C26: 9670000
A27: 6114 | B27: 賞与
A28: 6116 | B28: 法定福利費 | C28: 1250000
A29: 6117 | B29: 福利厚生費 | C29: 256000
A30: 6122 | B30: 顧問報酬 | C30: 300000
A31: 6211 | B31: 派遣社員 | C31: 0
A32: 6212 | B32: 消耗品費 | C32: 450000
A33: 6213 | B33: 賃借料 | C33: 1935451
A34: 6215 | B34: 保険料 | C34: 15000
A35: 6216 | B35: 修繕維持費 | C35: 1000000
A36: 6217 | B36: 租税公課 | C36: 0
A37: 6218 | B37: 減価償却費 | C37: 423064
A38: 6219 | B38: 貸倒引当金繰入 | C38: 0
A39: 6221 | B39: 旅費交通費 | C39: 950000
A40: 6222 | B40: 通信費 | C40: 225000
A41: 6223 | B41: 会議費 | C41: 175000
A42: 6224 | B42: 水道光熱費 | C42: 40000
A43: 6225 | B43: 支払手数料 | C43: 1950000
A44: 6226 | B44: 新聞図書費 | C44: 17700
A45: 6227 | B45: 銀行手数料 | C45: 74000
A46: 6228 | B46: 販促・広告費 | C46: 350000
A47: 6229 | B47: 接待交際費 | C47: 510000
A48: 6230 | B48: 諸会費
A49: 6231 | B49: 寄付金 | C49: 0
A50: 6233 | B50: 運送費 | C50: 10000
A51: 6234 | B51: 教育･トレーニング費
A52: 6235 | B52: 紹介手数料 | C52: 500000
A53: 6236 | B53: 採用費
A54: 6249 | B54: 雑費 | C54: 15000
A55: 7000 | B55: 営業利益 | C55: =C24-SUM(C25:C54) -> -16481215
A56: 7111 | B56: 受取利息 | C56: 0
A57: 7119 | B57: 雑収入 | C57: 0
A58: 7211 | B58: 支払利息割引料 | C58: 31250
A59: 7219 | B59: 雑損失 | C59: 0
A60: 8000 | B60: 経常利益 | C60: =C55-C58 -> -16512465

Sheet ５月実績値
D1: 実績
D2: 2017-05-01 | O2: 年度計
A3: 人数 | B3: 原価要員数 | D3: 30
B4: 販管要員数 | D4: 15
AJ5: 0
A6: ｺｰﾄﾞ | B6: 科目名 | C6: 4月 | D6: 5月 | E6: 6月 | F6: 7月 | G6: 8月 | H6: 9月 | I6: 10月 | J6: 11月 | K6: 12月 | L6: 1月 | M6: 2月 | N6: 3月 | O6: 年度計
A7: 4111 | B7: 売上高 | D7: 45120000 | O7: =SUM(C7:N7) -> 45120000
A8: 5421 | B8: 給与(原) | D8: 17580000 | O8: 17580000
A9: 5423 | B9: 賞与(原) | O9: 0
A10: 5425 | B10: 法定福利費(原) | D10: 2530000 | O10: 2530000
A11: 5429 | B11: 外注委託費(原) | D11: 1500000 | O11: 1500000
A12: 5442 | B12: 賃借料(原) | O12: 0
A13: 5452 | B13: 保険料(原) | O13: 0
A14: 5455 | B14: 旅費交通費(原) | D14: 6573240 | O14: 6573240
A15: 5456 | B15: 通信費(原) | D15: 285700 | O15: 285700
A16: 5457 | B16: 接待交際費(原) | O16: 0
A17: 5458 | B17: 消耗品費(原) | D17: 185400 | O17: 185400
A18: 5459 | B18: 運送費(原) | D18: 36000 | O18: 36000
A19: 5460 | B19: 会議費(原) | D19: 15400 | O19: 15400
A20: 5461 | B20: 書籍代(原) | D20: 32320 | O20: 32320
A21: 5479 | B21: 雑費(原) | O21: 0
A22: 5600 | B22: その他（原） | O22: 0
A23: 5700 | B23: 売上原価 | D23: =SUM(D8:D22) -> 28738060 | O23: 28738060
A24: 6000 | B24: 売上総利益 | D24: =D7-D23 -> 16381940 | O24: 16381940
A25: 6111 | B25: 役員報酬 | D25: 1000000 | O25: 1000000
A26: 6112 | B26: 給与手当(役員報酬除く） | D26: 8762000 | O26: 8762000
A27: 6114 | B27: 賞与 | O27: 0
A28: 6116 | B28: 法定福利費 | D28: 1140000 | O28: 1140000
A29: 6117 | B29: 福利厚生費 | D29: 216000 | O29: 216000
A30: 6122 | B30: 顧問報酬 | D30: 300000 | O30: 300000
A31: 6211 | B31: 派遣社員 | D31: 0 | O31: 0
A32: 6212 | B32: 消耗品費 | D32: 184000 | O32: 184000
A33: 6213 | B33: 賃借料 | D33: 1029600 | O33: 1029600
A34: 6215 | B34: 保険料 | D34: 0 | O34: 0
A35: 6216 | B35: 修繕維持費 | D35: 340000 | O35: 340000
A36: 6217 | B36: 租税公課 | D36: 0 | O36: 0
A37: 6218 | B37: 減価償却費 | D37: 290000 | O37: 290000
A38: 6219 | B38: 貸倒引当金繰入 | D38: 0 | O38: 0
A39: 6221 | B39: 旅費交通費 | D39: 600000 | O39: 600000
A40: 6222 | B40: 通信費 | D40: 42000 | O40: 42000
A41: 6223 | B41: 会議費 | D41: 0 | O41: 0
A42: 6224 | B42: 水道光熱費 | D42: 38000 | O42: 38000
A43: 6225 | B43: 支払手数料 | D43: 500000 | O43: 500000
A44: 6226 | B44: 新聞図書費 | D44: 9700 | O44: 9700
A45: 6227 | B45: 銀行手数料 | D45: 6400 | O45: 6400
A46: 6228 | B46: 販促・広告費 | D46: 124000 | O46: 124000
A47: 6229 | B47: 接待交際費 | D47: 48000 | O47: 48000
A48: 6230 | B48: 諸会費 | O48: 0
A49: 6231 | B49: 寄付金 | O49: 0
A50: 6233 | B50: 運送費 | D50: 10250 | O50: 10250
A51: 6234 | B51: 教育･トレーニング費 | O51: 0
A52: 6235 | B52: 紹介手数料 | O52: 0
A53: 6236 | B53: 採用費 | O53: 0
A54: 6249 | B54: 雑費 | D54: 8600 | O54: 8600
A55: 7000 | B55: 営業利益 | D55: =D24-SUM(D25:D54) -> 1733390 | O55: =SUM(C55:N55) -> 1733390
A56: 7111 | B56: 受取利息 | D56: 0 | O56: 0
A57: 7119 | B57: 雑収入 | D57: 0 | O57: 0
A58: 7211 | B58: 支払利息割引料 | D58: 0 | O58: 0
A59: 7219 | B59: 雑損失 | D59: 0 | O59: 0
A60: 8000 | B60: 経常利益 | D60: =D55+D56+D57-D58-D59 -> 1733390 | O60: 1733390

Sheet output（参考）
A2: 4111 | B2: 売上高 | C2: 実績 | D2: 42856 | E2: 45120000
A3: 5421 | B3: 給与(原) | C3: 実績 | D3: 42856 | E3: 17580000
A4: 5425 | B4: 法定福利費(原) | C4: 実績 | D4: 42856 | E4: 2530000
A5: 5429 | B5: 外注委託費(原) | C5: 実績 | D5: 42856 | E5: 1500000
A6: 5455 | B6: 旅費交通費(原) | C6: 実績 | D6: 42856 | E6: 6573240
A7: 5456 | B7: 通信費(原) | C7: 実績 | D7: 42856 | E7: 285700
A8: 5458 | B8: 消耗品費(原) | C8: 実績 | D8: 42856 | E8: 185400
A9: 5459 | B9: 運送費(原) | C9: 実績 | D9: 42856 | E9: 36000
A10: 5460 | B10: 会議費(原) | C10: 実績 | D10: 42856 | E10: 15400
A11: 5461 | B11: 書籍代(原) | C11: 実績 | D11: 42856 | E11: 32320
A12: 5700 | B12: 売上原価 | C12: 実績 | D12: 42856 | E12: 28738060
A13: 6000 | B13: 売上総利益 | C13: 実績 | D13: 42856 | E13: 16381940
A14: 6111 | B14: 役員報酬 | C14: 実績 | D14: 42856 | E14: 1000000
A15: 6112 | B15: 給与手当(役員報酬除く） | C15: 実績 | D15: 42856 | E15: 8762000
A16: 6116 | B16: 法定福利費 | C16: 実績 | D16: 42856 | E16: 1140000
A17: 6117 | B17: 福利厚生費 | C17: 実績 | D17: 42856 | E17: 216000
A18: 6122 | B18: 顧問報酬 | C18: 実績 | D18: 42856 | E18: 300000
A19: 6212 | B19: 消耗品費 | C19: 実績 | D19: 42856 | E19: 184000
A20: 6213 | B20: 賃借料 | C20: 実績 | D20: 42856 | E20: 1029600
A21: 6216 | B21: 修繕維持費 | C21: 実績 | D21: 42856 | E21: 340000
A22: 6218 | B22: 減価償却費 | C22: 実績 | D22: 42856 | E22: 290000
A23: 6221 | B23: 旅費交通費 | C23: 実績 | D23: 42856 | E23: 600000
A24: 6222 | B24: 通信費 | C24: 実績 | D24: 42856 | E24: 42000
A25: 6224 | B25: 水道光熱費 | C25: 実績 | D25: 42856 | E25: 38000
A26: 6225 | B26: 支払手数料 | C26: 実績 | D26: 42856 | E26: 500000
A27: 6226 | B27: 新聞図書費 | C27: 実績 | D27: 42856 | E27: 9700
A28: 6227 | B28: 銀行手数料 | C28: 実績 | D28: 42856 | E28: 6400
A29: 6228 | B29: 販促・広告費 | C29: 実績 | D29: 42856 | E29: 124000
A30: 6229 | B30: 接待交際費 | C30: 実績 | D30: 42856 | E30: 48000
A31: 6233 | B31: 運送費 | C31: 実績 | D31: 42856 | E31: 10250
A32: 6249 | B32: 雑費 | C32: 実績 | D32: 42856 | E32: 8600
A33: 7000 | B33: 営業利益 | C33: 実績 | D33: 42856 | E33: 1733390
A34: 8000 | B34: 経常利益 | C34: 実績 | D34: 42856 | E34: 1733390

Sheet データ（参考）
A1: コード | B1: 科目名称 | C1: データ種別 | D1: 年月 | E1: 金額
A2: 4111 | B2: 売上高 | C2: 17/01/15予算 | D2: 2017-04-01 | E2: 50000000
A3: 5421 | B3: 給与(原) | C3: 17/01/15予算 | D3: 2017-04-01 | E3: 18000000
A4: 5425 | B4: 法定福利費(原) | C4: 17/01/15予算 | D4: 2017-04-01 | E4: 2520000
A5: 5429 | B5: 外注委託費(原) | C5: 17/01/15予算 | D5: 2017-04-01 | E5: 1500000
A6: 5452 | B6: 保険料(原) | C6: 17/01/15予算 | D6: 2017-04-01 | E6: 20000
A7: 5455 | B7: 旅費交通費(原) | C7: 17/01/15予算 | D7: 2017-04-01 | E7: 6020000
A8: 5456 | B8: 通信費(原) | C8: 17/01/15予算 | D8: 2017-04-01 | E8: 300000
A9: 5458 | B9: 消耗品費(原) | C9: 17/01/15予算 | D9: 2017-04-01 | E9: 250000
A10: 5459 | B10: 運送費(原) | C10: 17/01/15予算 | D10: 2017-04-01 | E10: 40000
A11: 5460 | B11: 会議費(原) | C11: 17/01/15予算 | D11: 2017-04-01 | E11: 85000
A12: 5461 | B12: 書籍代(原) | C12: 17/01/15予算 | D12: 2017-04-01 | E12: 50000
A13: 5700 | B13: 売上原価 | C13: 17/01/15予算 | D13: 2017-04-01 | E13: 28785000
A14: 6000 | B14: 売上総利益 | C14: 17/01/15予算 | D14: 2017-04-01 | E14: 21215000
A15: 6111 | B15: 役員報酬 | C15: 17/01/15予算 | D15: 2017-04-01 | E15: 1000000
A16: 6112 | B16: 給与手当(役員報酬除く） | C16: 17/01/15予算 | D16: 2017-04-01 | E16: 9000000
A17: 6116 | B17: 法定福利費 | C17: 17/01/15予算 | D17: 2017-04-01 | E17: 1170000
A18: 6117 | B18: 福利厚生費 | C18: 17/01/15予算 | D18: 2017-04-01 | E18: 226000
A19: 6122 | B19: 顧問報酬 | C19: 17/01/15予算 | D19: 2017-04-01 | E19: 300000
A20: 6212 | B20: 消耗品費 | C20: 17/01/15予算 | D20: 2017-04-01 | E20: 377000
A21: 6213 | B21: 賃借料 | C21: 17/01/15予算 | D21: 2017-04-01 | E21: 1029600
A22: 6216 | B22: 修繕維持費 | C22: 17/01/15予算 | D22: 2017-04-01 | E22: 482000
A23: 6218 | B23: 減価償却費 | C23: 17/01/15予算 | D23: 2017-04-01 | E23: 290000
A24: 6221 | B24: 旅費交通費 | C24: 17/01/15予算 | D24: 2017-04-01 | E24: 735000
A25: 6222 | B25: 通信費 | C25: 17/01/15予算 | D25: 2017-04-01 | E25: 43000
A26: 6223 | B26: 会議費 | C26: 17/01/15予算 | D26: 2017-04-01 | E26: 35400
A27: 6224 | B27: 水道光熱費 | C27: 17/01/15予算 | D27: 2017-04-01 | E27: 45000
A28: 6225 | B28: 支払手数料 | C28: 17/01/15予算 | D28: 2017-04-01 | E28: 250000
A29: 6226 | B29: 新聞図書費 | C29: 17/01/15予算 | D29: 2017-04-01 | E29: 9700
A30: 6227 | B30: 銀行手数料 | C30: 17/01/15予算 | D30: 2017-04-01 | E30: 5000
A31: 6228 | B31: 販促・広告費 | C31: 17/01/15予算 | D31: 2017-04-01 | E31: 135000
A32: 6229 | B32: 接待交際費 | C32: 17/01/15予算 | D32: 2017-04-01 | E32: 50000
A33: 6233 | B33: 運送費 | C33: 17/01/15予算 | D33: 2017-04-01 | E33: 15000
A34: 7000 | B34: 営業利益 | C34: 17/01/15予算 | D34: 2017-04-01 | E34: 6017300
A35: 8000 | B35: 経常利益 | C35: 17/01/15予算 | D35: 2017-04-01 | E35: 6017300
A36: 4111 | B36: 売上高 | C36: 17/01/15予算 | D36: 2017-05-01 | E36: 50000000
A37: 5421 | B37: 給与(原) | C37: 17/01/15予算 | D37: 2017-05-01 | E37: 18000000
A38: 5425 | B38: 法定福利費(原) | C38: 17/01/15予算 | D38: 2017-05-01 | E38: 2520000
A39: 5429 | B39: 外注委託費(原) | C39: 17/01/15予算 | D39: 2017-05-01 | E39: 1500000
A40: 5452 | B40: 保険料(原) | C40: 17/01/15予算 | D40: 2017-05-01 | E40: 20000
A41: 5455 | B41: 旅費交通費(原) | C41: 17/01/15予算 | D41: 2017-05-01 | E41: 6220000
A42: 5456 | B42: 通信費(原) | C42: 17/01/15予算 | D42: 2017-05-01 | E42: 300000
A43: 5458 | B43: 消耗品費(原) | C43: 17/01/15予算 | D43: 2017-05-01 | E43: 250000
A44: 5459 | B44: 運送費(原) | C44: 17/01/15予算 | D44: 2017-05-01 | E44: 40000
A45: 5460 | B45: 会議費(原) | C45: 17/01/15予算 | D45: 2017-05-01 | E45: 85000
A46: 5461 | B46: 書籍代(原) | C46: 17/01/15予算 | D46: 2017-05-01 | E46: 50000
A47: 5700 | B47: 売上原価 | C47: 17/01/15予算 | D47: 2017-05-01 | E47: 28985000
A48: 6000 | B48: 売上総利益 | C48: 17/01/15予算 | D48: 2017-05-01 | E48: 21015000
A49: 6111 | B49: 役員報酬 | C49: 17/01/15予算 | D49: 2017-05-01 | E49: 1000000
A50: 6112 | B50: 給与手当(役員報酬除く） | C50: 17/01/15予算 | D50: 2017-05-01 | E50: 9000000
A51: 6116 | B51: 法定福利費 | C51: 17/01/15予算 | D51: 2017-05-01 | E51: 1170000
A52: 6117 | B52: 福利厚生費 | C52: 17/01/15予算 | D52: 2017-05-01 | E52: 226000
A53: 6122 | B53: 顧問報酬 | C53: 17/01/15予算 | D53: 2017-05-01 | E53: 300000
A54: 6212 | B54: 消耗品費 | C54: 17/01/15予算 | D54: 2017-05-01 | E54: 252000
A55: 6213 | B55: 賃借料 | C55: 17/01/15予算 | D55: 2017-05-01 | E55: 1029600
A56: 6216 | B56: 修繕維持費 | C56: 17/01/15予算 | D56: 2017-05-01 | E56: 532000
A57: 6218 | B57: 減価償却費 | C57: 17/01/15予算 | D57: 2017-05-01 | E57: 290000
A58: 6221 | B58: 旅費交通費 | C58: 17/01/15予算 | D58: 2017-05-01 | E58: 735000
A59: 6222 | B59: 通信費 | C59: 17/01/15予算 | D59: 2017-05-01 | E59: 43000
A60: 6223 | B60: 会議費 | C60: 17/01/15予算 | D60: 2017-05-01 | E60: 35400
A61: 6224 | B61: 水道光熱費 | C61: 17/01/15予算 | D61: 2017-05-01 | E61: 45000
A62: 6225 | B62: 支払手数料 | C62: 17/01/15予算 | D62: 2017-05-01 | E62: 500000
A63: 6226 | B63: 新聞図書費 | C63: 17/01/15予算 | D63: 2017-05-01 | E63: 9700
A64: 6227 | B64: 銀行手数料 | C64: 17/01/15予算 | D64: 2017-05-01 | E64: 5000
A65: 6229 | B65: 接待交際費 | C65: 17/01/15予算 | D65: 2017-05-01 | E65: 50000
A66: 6233 | B66: 運送費 | C66: 17/01/15予算 | D66: 2017-05-01 | E66: 15000
A67: 7000 | B67: 営業利益 | C67: 17/01/15予算 | D67: 2017-05-01 | E67: 5777300
A68: 8000 | B68: 経常利益 | C68: 17/01/15予算 | D68: 2017-05-01 | E68: 5777300
A69: 4111 | B69: 売上高 | C69: 17/01/15予算 | D69: 2017-06-01 | E69: 45000000
A70: 5421 | B70: 給与(原) | C70: 17/01/15予算 | D70: 2017-06-01 | E70: 18000000
A71: 5425 | B71: 法定福利費(原) | C71: 17/01/15予算 | D71: 2017-06-01 | E71: 2520000
A72: 5429 | B72: 外注委託費(原) | C72: 17/01/15予算 | D72: 2017-06-01 | E72: 1500000
A73: 5452 | B73: 保険料(原) | C73: 17/01/15予算 | D73: 2017-06-01 | E73: 20000
A74: 5455 | B74: 旅費交通費(原) | C74: 17/01/15予算 | D74: 2017-06-01 | E74: 11220000
A75: 5456 | B75: 通信費(原) | C75: 17/01/15予算 | D75: 2017-06-01 | E75: 300000
A76: 5458 | B76: 消耗品費(原) | C76: 17/01/15予算 | D76: 2017-06-01 | E76: 250000
A77: 5459 | B77: 運送費(原) | C77: 17/01/15予算 | D77: 2017-06-01 | E77: 40000
A78: 5460 | B78: 会議費(原) | C78: 17/01/15予算 | D78: 2017-06-01 | E78: 85000
A79: 5461 | B79: 書籍代(原) | C79: 17/01/15予算 | D79: 2017-06-01 | E79: 50000
A80: 5700 | B80: 売上原価 | C80: 17/01/15予算 | D80: 2017-06-01 | E80: 33985000
A81: 6000 | B81: 売上総利益 | C81: 17/01/15予算 | D81: 2017-06-01 | E81: 11015000
A82: 6111 | B82: 役員報酬 | C82: 17/01/15予算 | D82: 2017-06-01 | E82: 1000000
A83: 6112 | B83: 給与手当(役員報酬除く） | C83: 17/01/15予算 | D83: 2017-06-01 | E83: 9000000
A84: 6116 | B84: 法定福利費 | C84: 17/01/15予算 | D84: 2017-06-01 | E84: 1170000
A85: 6117 | B85: 福利厚生費 | C85: 17/01/15予算 | D85: 2017-06-01 | E85: 226000
A86: 6122 | B86: 顧問報酬 | C86: 17/01/15予算 | D86: 2017-06-01 | E86: 300000
A87: 6212 | B87: 消耗品費 | C87: 17/01/15予算 | D87: 2017-06-01 | E87: 252000
A88: 6213 | B88: 賃借料 | C88: 17/01/15予算 | D88: 2017-06-01 | E88: 1029600
A89: 6216 | B89: 修繕維持費 | C89: 17/01/15予算 | D89: 2017-06-01 | E89: 842000
A90: 6217 | B90: 租税公課 | C90: 17/01/15予算 | D90: 2017-06-01 | E90: 600000
A91: 6218 | B91: 減価償却費 | C91: 17/01/15予算 | D91: 2017-06-01 | E91: 290000
A92: 6221 | B92: 旅費交通費 | C92: 17/01/15予算 | D92: 2017-06-01 | E92: 465000
A93: 6222 | B93: 通信費 | C93: 17/01/15予算 | D93: 2017-06-01 | E93: 43000
A94: 6223 | B94: 会議費 | C94: 17/01/15予算 | D94: 2017-06-01 | E94: 35400
A95: 6224 | B95: 水道光熱費 | C95: 17/01/15予算 | D95: 2017-06-01 | E95: 45000
A96: 6225 | B96: 支払手数料 | C96: 17/01/15予算 | D96: 2017-06-01 | E96: 260000
A97: 6226 | B97: 新聞図書費 | C97: 17/01/15予算 | D97: 2017-06-01 | E97: 9700
A98: 6227 | B98: 銀行手数料 | C98: 17/01/15予算 | D98: 2017-06-01 | E98: 5000
A99: 6229 | B99: 接待交際費 | C99: 17/01/15予算 | D99: 2017-06-01 | E99: 50000
A100: 6233 | B100: 運送費 | C100: 17/01/15予算 | D100: 2017-06-01 | E100: 15000
A101: 7000 | B101: 営業利益 | C101: 17/01/15予算 | D101: 2017-06-01 | E101: -4622700
A102: 8000 | B102: 経常利益 | C102: 17/01/15予算 | D102: 2017-06-01 | E102: -4622700
A103: 4111 | B103: 売上高 | C103: 17/01/15予算 | D103: 2017-07-01 | E103: 50000000
A104: 5421 | B104: 給与(原) | C104: 17/01/15予算 | D104: 2017-07-01 | E104: 18000000
A105: 5425 | B105: 法定福利費(原) | C105: 17/01/15予算 | D105: 2017-07-01 | E105: 2520000
A106: 5429 | B106: 外注委託費(原) | C106: 17/01/15予算 | D106: 2017-07-01 | E106: 1500000
A107: 5452 | B107: 保険料(原) | C107: 17/01/15予算 | D107: 2017-07-01 | E107: 20000
A108: 5455 | B108: 旅費交通費(原) | C108: 17/01/15予算 | D108: 2017-07-01 | E108: 7050000
A109: 5456 | B109: 通信費(原) | C109: 17/01/15予算 | D109: 2017-07-01 | E109: 300000
A110: 5458 | B110: 消耗品費(原) | C110: 17/01/15予算 | D110: 2017-07-01 | E110: 250000
A111: 5459 | B111: 運送費(原) | C111: 17/01/15予算 | D111: 2017-07-01 | E111: 40000
A112: 5460 | B112: 会議費(原) | C112: 17/01/15予算 | D112: 2017-07-01 | E112: 85000
A113: 5461 | B113: 書籍代(原) | C113: 17/01/15予算 | D113: 2017-07-01 | E113: 50000
A114: 5700 | B114: 売上原価 | C114: 17/01/15予算 | D114: 2017-07-01 | E114: 29815000
A115: 6000 | B115: 売上総利益 | C115: 17/01/15予算 | D115: 2017-07-01 | E115: 20185000
A116: 6111 | B116: 役員報酬 | C116: 17/01/15予算 | D116: 2017-07-01 | E116: 1000000
A117: 6112 | B117: 給与手当(役員報酬除く） | C117: 17/01/15予算 | D117: 2017-07-01 | E117: 9000000
A118: 6116 | B118: 法定福利費 | C118: 17/01/15予算 | D118: 2017-07-01 | E118: 1170000
A119: 6117 | B119: 福利厚生費 | C119: 17/01/15予算 | D119: 2017-07-01 | E119: 226000
A120: 6122 | B120: 顧問報酬 | C120: 17/01/15予算 | D120: 2017-07-01 | E120: 300000
A121: 6212 | B121: 消耗品費 | C121: 17/01/15予算 | D121: 2017-07-01 | E121: 252000
A122: 6213 | B122: 賃借料 | C122: 17/01/15予算 | D122: 2017-07-01 | E122: 1029600
A123: 6215 | B123: 保険料 | C123: 17/01/15予算 | D123: 2017-07-01 | E123: 1400000
A124: 6216 | B124: 修繕維持費 | C124: 17/01/15予算 | D124: 2017-07-01 | E124: 482000
A125: 6217 | B125: 租税公課 | C125: 17/01/15予算 | D125: 2017-07-01 | E125: 15000
A126: 6218 | B126: 減価償却費 | C126: 17/01/15予算 | D126: 2017-07-01 | E126: 290000
A127: 6221 | B127: 旅費交通費 | C127: 17/01/15予算 | D127: 2017-07-01 | E127: 465000
A128: 6222 | B128: 通信費 | C128: 17/01/15予算 | D128: 2017-07-01 | E128: 43000
A129: 6223 | B129: 会議費 | C129: 17/01/15予算 | D129: 2017-07-01 | E129: 35400
A130: 6224 | B130: 水道光熱費 | C130: 17/01/15予算 | D130: 2017-07-01 | E130: 45000
A131: 6225 | B131: 支払手数料 | C131: 17/01/15予算 | D131: 2017-07-01 | E131: 250000
A132: 6226 | B132: 新聞図書費 | C132: 17/01/15予算 | D132: 2017-07-01 | E132: 9700
A133: 6227 | B133: 銀行手数料 | C133: 17/01/15予算 | D133: 2017-07-01 | E133: 5000
A134: 6228 | B134: 販促・広告費 | C134: 17/01/15予算 | D134: 2017-07-01 | E134: 500000
A135: 6229 | B135: 接待交際費 | C135: 17/01/15予算 | D135: 2017-07-01 | E135: 50000
A136: 6231 | B136: 寄付金 | C136: 17/01/15予算 | D136: 2017-07-01 | E136: 30000
A137: 6233 | B137: 運送費 | C137: 17/01/15予算 | D137: 2017-07-01 | E137: 15000
A138: 7000 | B138: 営業利益 | C138: 17/01/15予算 | D138: 2017-07-01 | E138: 3572300
A139: 8000 | B139: 経常利益 | C139: 17/01/15予算 | D139: 2017-07-01 | E139: 3572300
A140: 4111 | B140: 売上高 | C140: 17/01/15予算 | D140: 2017-08-01 | E140: 50000000
A141: 5421 | B141: 給与(原) | C141: 17/01/15予算 | D141: 2017-08-01 | E141: 18000000
A142: 5425 | B142: 法定福利費(原) | C142: 17/01/15予算 | D142: 2017-08-01 | E142: 2520000
A143: 5429 | B143: 外注委託費(原) | C143: 17/01/15予算 | D143: 2017-08-01 | E143: 1500000
A144: 5452 | B144: 保険料(原) | C144: 17/01/15予算 | D144: 2017-08-01 | E144: 20000
A145: 5455 | B145: 旅費交通費(原) | C145: 17/01/15予算 | D145: 2017-08-01 | E145: 6650000
A146: 5456 | B146: 通信費(原) | C146: 17/01/15予算 | D146: 2017-08-01 | E146: 300000
A147: 5458 | B147: 消耗品費(原) | C147: 17/01/15予算 | D147: 2017-08-01 | E147: 250000
A148: 5459 | B148: 運送費(原) | C148: 17/01/15予算 | D148: 2017-08-01 | E148: 40000
A149: 5460 | B149: 会議費(原) | C149: 17/01/15予算 | D149: 2017-08-01 | E149: 85000
A150: 5461 | B150: 書籍代(原) | C150: 17/01/15予算 | D150: 2017-08-01 | E150: 50000
A151: 5700 | B151: 売上原価 | C151: 17/01/15予算 | D151: 2017-08-01 | E151: 29415000
A152: 6000 | B152: 売上総利益 | C152: 17/01/15予算 | D152: 2017-08-01 | E152: 20585000
A153: 6111 | B153: 役員報酬 | C153: 17/01/15予算 | D153: 2017-08-01 | E153: 1000000
A154: 6112 | B154: 給与手当(役員報酬除く） | C154: 17/01/15予算 | D154: 2017-08-01 | E154: 9000000
A155: 6116 | B155: 法定福利費 | C155: 17/01/15予算 | D155: 2017-08-01 | E155: 1170000
A156: 6117 | B156: 福利厚生費 | C156: 17/01/15予算 | D156: 2017-08-01 | E156: 226000
A157: 6122 | B157: 顧問報酬 | C157: 17/01/15予算 | D157: 2017-08-01 | E157: 300000
A158: 6212 | B158: 消耗品費 | C158: 17/01/15予算 | D158: 2017-08-01 | E158: 252000
A159: 6213 | B159: 賃借料 | C159: 17/01/15予算 | D159: 2017-08-01 | E159: 1029600
A160: 6216 | B160: 修繕維持費 | C160: 17/01/15予算 | D160: 2017-08-01 | E160: 482000
A161: 6218 | B161: 減価償却費 | C161: 17/01/15予算 | D161: 2017-08-01 | E161: 290000
A162: 6221 | B162: 旅費交通費 | C162: 17/01/15予算 | D162: 2017-08-01 | E162: 465000
A163: 6222 | B163: 通信費 | C163: 17/01/15予算 | D163: 2017-08-01 | E163: 43000
A164: 6223 | B164: 会議費 | C164: 17/01/15予算 | D164: 2017-08-01 | E164: 35400
A165: 6224 | B165: 水道光熱費 | C165: 17/01/15予算 | D165: 2017-08-01 | E165: 45000
A166: 6225 | B166: 支払手数料 | C166: 17/01/15予算 | D166: 2017-08-01 | E166: 200000
A167: 6226 | B167: 新聞図書費 | C167: 17/01/15予算 | D167: 2017-08-01 | E167: 9700
A168: 6227 | B168: 銀行手数料 | C168: 17/01/15予算 | D168: 2017-08-01 | E168: 5000
A169: 6229 | B169: 接待交際費 | C169: 17/01/15予算 | D169: 2017-08-01 | E169: 50000
A170: 6230 | B170: 諸会費 | C170: 17/01/15予算 | D170: 2017-08-01 | E170: 60000
A171: 6233 | B171: 運送費 | C171: 17/01/15予算 | D171: 2017-08-01 | E171: 15000
A172: 7000 | B172: 営業利益 | C172: 17/01/15予算 | D172: 2017-08-01 | E172: 5907300
A173: 8000 | B173: 経常利益 | C173: 17/01/15予算 | D173: 2017-08-01 | E173: 5907300
A174: 4111 | B174: 売上高 | C174: 17/01/15予算 | D174: 2017-09-01 | E174: 50000000
A175: 5421 | B175: 給与(原) | C175: 17/01/15予算 | D175: 2017-09-01 | E175: 18000000
A176: 5425 | B176: 法定福利費(原) | C176: 17/01/15予算 | D176: 2017-09-01 | E176: 2520000
A177: 5429 | B177: 外注委託費(原) | C177: 17/01/15予算 | D177: 2017-09-01 | E177: 1500000
A178: 5452 | B178: 保険料(原) | C178: 17/01/15予算 | D178: 2017-09-01 | E178: 20000
A179: 5455 | B179: 旅費交通費(原) | C179: 17/01/15予算 | D179: 2017-09-01 | E179: 6650000
A180: 5456 | B180: 通信費(原) | C180: 17/01/15予算 | D180: 2017-09-01 | E180: 300000
A181: 5458 | B181: 消耗品費(原) | C181: 17/01/15予算 | D181: 2017-09-01 | E181: 250000
A182: 5459 | B182: 運送費(原) | C182: 17/01/15予算 | D182: 2017-09-01 | E182: 40000
A183: 5460 | B183: 会議費(原) | C183: 17/01/15予算 | D183: 2017-09-01 | E183: 85000
A184: 5461 | B184: 書籍代(原) | C184: 17/01/15予算 | D184: 2017-09-01 | E184: 50000
A185: 5700 | B185: 売上原価 | C185: 17/01/15予算 | D185: 2017-09-01 | E185: 29415000
A186: 6000 | B186: 売上総利益 | C186: 17/01/15予算 | D186: 2017-09-01 | E186: 20585000
A187: 6111 | B187: 役員報酬 | C187: 17/01/15予算 | D187: 2017-09-01 | E187: 1000000
A188: 6112 | B188: 給与手当(役員報酬除く） | C188: 17/01/15予算 | D188: 2017-09-01 | E188: 9000000
A189: 6116 | B189: 法定福利費 | C189: 17/01/15予算 | D189: 2017-09-01 | E189: 1170000
A190: 6117 | B190: 福利厚生費 | C190: 17/01/15予算 | D190: 2017-09-01 | E190: 268000
A191: 6122 | B191: 顧問報酬 | C191: 17/01/15予算 | D191: 2017-09-01 | E191: 300000
A192: 6212 | B192: 消耗品費 | C192: 17/01/15予算 | D192: 2017-09-01 | E192: 252000
A193: 6213 | B193: 賃借料 | C193: 17/01/15予算 | D193: 2017-09-01 | E193: 1029600
A194: 6216 | B194: 修繕維持費 | C194: 17/01/15予算 | D194: 2017-09-01 | E194: 882000
A195: 6217 | B195: 租税公課 | C195: 17/01/15予算 | D195: 2017-09-01 | E195: 50000
A196: 6218 | B196: 減価償却費 | C196: 17/01/15予算 | D196: 2017-09-01 | E196: 290000
A197: 6221 | B197: 旅費交通費 | C197: 17/01/15予算 | D197: 2017-09-01 | E197: 465000
A198: 6222 | B198: 通信費 | C198: 17/01/15予算 | D198: 2017-09-01 | E198: 43000
A199: 6223 | B199: 会議費 | C199: 17/01/15予算 | D199: 2017-09-01 | E199: 35400
A200: 6224 | B200: 水道光熱費 | C200: 17/01/15予算 | D200: 2017-09-01 | E200: 45000
... 698 more rows

Sheet 参考ピボットテーブル
A1: 年月 | B1: 2017-04-01
A3: 合計 / 金額 | B3: 列ラベル
A4: 行ラベル | B4: 17/01/15予算 | C4: 17/02/15予算 | D4: 実績 | E4: 総計
A5: 4111 | B5: 50000000 | C5: 50000000 | D5: 30500000 | E5: 130500000
A6: 売上高 | B6: 50000000 | C6: 50000000 | D6: 30500000 | E6: 130500000
A7: 5421 | B7: 18000000 | C7: 18000000 | D7: 17000000 | E7: 53000000
A8: 給与(原) | B8: 18000000 | C8: 18000000 | D8: 17000000 | E8: 53000000
A9: 5425 | B9: 2520000 | C9: 2520000 | D9: 2500000 | E9: 7540000
A10: 法定福利費(原) | B10: 2520000 | C10: 2520000 | D10: 2500000 | E10: 7540000
A11: 5429 | B11: 1500000 | C11: 1500000 | D11: 1500000 | E11: 4500000
A12: 外注委託費(原) | B12: 1500000 | C12: 1500000 | D12: 1500000 | E12: 4500000
A13: 5452 | B13: 20000 | C13: 20000 | D13: 5000 | E13: 45000
A14: 保険料(原) | B14: 20000 | C14: 20000 | D14: 5000 | E14: 45000
A15: 5455 | B15: 6020000 | C15: 6020000 | D15: 4750000 | E15: 16790000
A16: 旅費交通費(原) | B16: 6020000 | C16: 6020000 | D16: 4750000 | E16: 16790000
A17: 5456 | B17: 300000 | C17: 300000 | D17: 250000 | E17: 850000
A18: 通信費(原) | B18: 300000 | C18: 300000 | D18: 250000 | E18: 850000
A19: 5458 | B19: 250000 | C19: 250000 | D19: 200000 | E19: 700000
A20: 消耗品費(原) | B20: 250000 | C20: 250000 | D20: 200000 | E20: 700000
A21: 5459 | B21: 40000 | C21: 40000 | D21: 35000 | E21: 115000
A22: 運送費(原) | B22: 40000 | C22: 40000 | D22: 35000 | E22: 115000
A23: 5460 | B23: 85000 | C23: 85000 | D23: 80000 | E23: 250000
A24: 会議費(原) | B24: 85000 | C24: 85000 | D24: 80000 | E24: 250000
A25: 5461 | B25: 50000 | C25: 50000 | D25: 45000 | E25: 145000
A26: 書籍代(原) | B26: 50000 | C26: 50000 | D26: 45000 | E26: 145000
A27: 5700 | B27: 28785000 | C27: 28785000 | D27: 26365000 | E27: 83935000
A28: 売上原価 | B28: 28785000 | C28: 28785000 | D28: 26365000 | E28: 83935000
A29: 6000 | B29: 21215000 | C29: 21215000 | D29: 4135000 | E29: 46565000
A30: 売上総利益 | B30: 21215000 | C30: 21215000 | D30: 4135000 | E30: 46565000
A31: 6111 | B31: 1000000 | C31: 1000000 | D31: 500000 | E31: 2500000
A32: 役員報酬 | B32: 1000000 | C32: 1000000 | D32: 500000 | E32: 2500000
A33: 6112 | B33: 9000000 | C33: 9000000 | D33: 9670000 | E33: 27670000
A34: 給与手当(役員報酬除く） | B34: 9000000 | C34: 9000000 | D34: 9670000 | E34: 27670000
A35: 6116 | B35: 1170000 | C35: 1170000 | D35: 1250000 | E35: 3590000
A36: 法定福利費 | B36: 1170000 | C36: 1170000 | D36: 1250000 | E36: 3590000
A37: 6117 | B37: 226000 | C37: 226000 | D37: 256000 | E37: 708000
A38: 福利厚生費 | B38: 226000 | C38: 226000 | D38: 256000 | E38: 708000
A39: 6122 | B39: 300000 | C39: 300000 | D39: 300000 | E39: 900000
A40: 顧問報酬 | B40: 300000 | C40: 300000 | D40: 300000 | E40: 900000
A41: 6212 | B41: 377000 | C41: 377000 | D41: 450000 | E41: 1204000
A42: 消耗品費 | B42: 377000 | C42: 377000 | D42: 450000 | E42: 1204000
A43: 6213 | B43: 1029600 | C43: 1029600 | D43: 1935451 | E43: 3994651
A44: 賃借料 | B44: 1029600 | C44: 1029600 | D44: 1935451 | E44: 3994651
A45: 6215 | D45: 15000 | E45: 15000
A46: 保険料 | D46: 15000 | E46: 15000
A47: 6216 | B47: 482000 | C47: 482000 | D47: 1000000 | E47: 1964000
A48: 修繕維持費 | B48: 482000 | C48: 482000 | D48: 1000000 | E48: 1964000
A49: 6218 | B49: 290000 | C49: 290000 | D49: 423064 | E49: 1003064
A50: 減価償却費 | B50: 290000 | C50: 290000 | D50: 423064 | E50: 1003064
A51: 6221 | B51: 735000 | C51: 650000 | D51: 950000 | E51: 2335000
A52: 旅費交通費 | B52: 735000 | C52: 650000 | D52: 950000 | E52: 2335000
A53: 6222 | B53: 43000 | C53: 43000 | D53: 225000 | E53: 311000
A54: 通信費 | B54: 43000 | C54: 43000 | D54: 225000 | E54: 311000
A55: 6223 | B55: 35400 | C55: 35400 | D55: 175000 | E55: 245800
A56: 会議費 | B56: 35400 | C56: 35400 | D56: 175000 | E56: 245800
A57: 6224 | B57: 45000 | C57: 45000 | D57: 40000 | E57: 130000
A58: 水道光熱費 | B58: 45000 | C58: 45000 | D58: 40000 | E58: 130000
A59: 6225 | B59: 250000 | C59: 250000 | D59: 1950000 | E59: 2450000
A60: 支払手数料 | B60: 250000 | C60: 250000 | D60: 1950000 | E60: 2450000
A61: 6226 | B61: 9700 | C61: 9700 | D61: 17700 | E61: 37100
A62: 新聞図書費 | B62: 9700 | C62: 9700 | D62: 17700 | E62: 37100
A63: 6227 | B63: 5000 | C63: 5000 | D63: 74000 | E63: 84000
A64: 銀行手数料 | B64: 5000 | C64: 5000 | D64: 74000 | E64: 84000
A65: 6228 | B65: 135000 | C65: 135000 | D65: 350000 | E65: 620000
A66: 販促・広告費 | B66: 135000 | C66: 135000 | D66: 350000 | E66: 620000
A67: 6229 | B67: 50000 | C67: 50000 | D67: 510000 | E67: 610000
A68: 接待交際費 | B68: 50000 | C68: 50000 | D68: 510000 | E68: 610000
A69: 6233 | B69: 15000 | C69: 15000 | D69: 10000 | E69: 40000
A70: 運送費 | B70: 15000 | C70: 15000 | D70: 10000 | E70: 40000
A71: 6235 | D71: 500000 | E71: 500000
A72: 紹介手数料 | D72: 500000 | E72: 500000
A73: 6249 | D73: 15000 | E73: 15000
A74: 雑費 | D74: 15000 | E74: 15000
A75: 7000 | B75: 6017300 | C75: 6102300 | D75: -16481215 | E75: -4361615
A76: 営業利益 | B76: 6017300 | C76: 6102300 | D76: -16481215 | E76: -4361615
A77: 7211 | D77: 31250 | E77: 31250
A78: 支払利息割引料 | D78: 31250 | E78: 31250
A79: 8000 | B79: 6017300 | C79: 6102300 | D79: -16512465 | E79: -4392865
A80: 経常利益 | B80: 6017300 | C80: 6102300 | D80: -16512465 | E80: -4392865
A81: 総計 | B81: 156017300 | C81: 156102300 | D81: 75018785 | E81: 387138385
